Workbook

Sheet plan

Sheet Feuil1
A2: JUPILER | D2: 25CL | E2: 2.3
A3: APPLETISSER | E3: 3.5
A4: APPLETISSER | E4: 3.5 | J4: 54
G12: TOTAL | I12: =SUM(E:E) -> 9.3

Sheet Feuil2
A1: 2023-09-06
A2: YELLOW | E2: 8
A3: YELLOW | E3: 8
A4: YELLOW | E4: 8
A5: YELLOW | E5: 8
A6: YELLOW | E6: 8
A7: YELLOW | E7: 8
A8: YELLOW | E8: 8
A9: YELLOW | E9: 8
G12: TOTAL | I12: =SUM(E:E) -> 64

Sheet Feuil3
A1: 2023-09-06
G12: TOTAL | I12: =SUM(E:E) -> 0

Sheet Feuil4
A1: 2023-09-06
G12: TOTAL | I12: =SUM(E:E) -> 0

Sheet Feuil5
G12: TOTAL | I12: =SUM(E:E) -> 0

Sheet Feuil6
G12: TOTAL | I12: =SUM(E:E) -> 0

Sheet Feuil7
A2: JUPILER | D2: 25CL | E2: 2.3
A3: APPLETISSER | E3: 3.5
A4: APPLETISSER | E4: 3.5
G12: TOTAL | I12: =SUM(E:E) -> 9.3

Sheet Feuil8
G12: TOTAL | I12: =SUM(E:E) -> 0

Sheet Feuil9
G12: TOTAL | I12: =SUM(E:E) -> 0

Sheet Feuil10
A2: JUPILER | D2: 25CL | E2: 2.3
A3: APPLETISSER | E3: 3.5
A4: APPLETISSER | E4: 3.5
G12: TOTAL | I12: =SUM(E:E) -> 9.3

Sheet Feuil11
A1: 2023-09-06
G12: TOTAL | I12: =SUM(E:E) -> 0

Sheet Feuil12
G12: TOTAL | I12: =SUM(E:E) -> 0

Sheet tonneau
A1: 2023-09-12
G12: TOTAL | I12: =SUM(E:E) -> 0

Sheet pt
A1: 2023-09-08
G12: TOTAL | I12: =SUM(E:E) -> 0

Sheet gt
A1: 2023-09-08
G12: TOTAL | I12: =SUM(E:E) -> 0

Sheet salon1
A1: 2023-09-08
G12: TOTAL | I12: =SUM(E:E) -> 0

Sheet salon2
A1: 2023-09-06
G12: TOTAL | I12: =SUM(E:E) -> 0

Sheet salon3
A1: 2023-09-08
A2: THE camomille | E2: 2.3
A3: THE camomille | E3: 2.3
A4: THE camomille | E4: 2.3
A5: THE camomille | E5: 2.3
A6: THE camomille | E6: 2.3
A7: THE camomille | E7: 2.3
A8: THE camomille | E8: 2.3
A9: THE camomille | E9: 2.3
G12: TOTAL | I12: =SUM(E:E) -> 18.4

Sheet table1
A1: 2023-09-08
A2: TK | D2: 50CL | E2: 4.7
A3: TK | D3: 50CL | E3: 4.7
A4: TK | D4: 50CL | E4: 4.7
A5: NORDIC BITTER | D5: 20CL | E5: 2.7
A6: NORDIC BITTER | D6: 20CL | E6: 2.7
G12: TOTAL | I12: =SUM(E:E) -> 19.5

Sheet table2
A1: 2023-09-12
G12: TOTAL | I12: =SUM(E:E) -> 0

Sheet table3
A1: 2023-09-08
G12: TOTAL | I12: =SUM(E:E) -> 0

Sheet table4
A1: 2023-09-08
G12: TOTAL | I12: =SUM(E:E) -> 0

Sheet table5
A1: 2023-09-08
A2: MINUTE MAID MULTIVITAMINES | D2: a | E2: 22.3 | F2: Oui
A3: THE NATURE | D3: c | E3: 2.3 | F3: Oui
A4: THE NATURE | E4: 2.3 | F4: Oui
A5: THE NATURE | E5: 2.3 | F5: Oui
A6: THE NATURE | E6: 2.3 | F6: Oui
A7: THE NATURE | E7: 2.3
A8: APPLETISSER | E8: 3.5
A9: BACARDI BLANC | D9: 2.3 | E9: 4.5 | F9: Oui
A10: BACARDI BRUN | D10: 2.5 | E10: 5
A11: BACARDI FRAMBOISE | D11: 2.3 | E11: 4.5
A12: BATIDA | D12: 2 | E12: 4 | F12: Non | G12: TOTAL | I12: =SUM(E:E) -> 225.9
A13: YELLOW | E13: 8
A14: YELLOW | E14: 8
A15: YELLOW | E15: 8
A16: YELLOW | E16: 8
A17: YELLOW | E17: 8
A18: YELLOW | E18: 8
A19: YELLOW | E19: 8
A20: YELLOW | E20: 8
A21: BRISEE | E21: 25
A22: BRISEE | E22: 25
A23: BRISEE | E23: 25
A24: FUZE TEA CHAMOMILE | E24: 2.7
A25: FUZE TEA CHAMOMILE | E25: 2.7
A26: FUZE TEA CHAMOMILE | E26: 2.7 | F26: Oui
A27: FUZE TEA CHAMOMILE | E27: 2.7
A28: SAUCISSE SECHE | E28: 2.6
A29: SAUCISSE SECHE | E29: 2.6
A30: SAUCISSE SECHE | E30: 2.6
A31: SAUCISSE SECHE | E31: 2.6
A32: SAUCISSE SECHE | E32: 2.6
A33: SAUCISSE SECHE | E33: 2.6
A34: SAUCISSE SECHE | E34: 2.6
A35: SAUCISSE SECHE | E35: 2.6 | F35: Non
A36: /// | E36: //
A37: /// | E37: // | F37: Oui
A38: /// | E38: // | F38: Oui
A39: /// | E39: //
A40: /// | E40: //
A41: /// | E41: //
A42: /// | E42: //
A43: /// | E43: //

Sheet table6
A1: 2023-09-08
A2: THE camomille | E2: 2.3
A3: THE camomille | E3: 2.3
A4: THE camomille | E4: 2.3
G12: TOTAL | I12: =SUM(E:E) -> 6.9

Sheet table7
A1: 2023-09-08
G12: TOTAL | I12: =SUM(E:E) -> 0

Sheet table8
A1: 2023-09-08
G12: TOTAL | I12: =SUM(E:E) -> 0

Sheet i1
A2: WHISKY SOUR | E2: 7.5
G12: TOTAL | I12: =SUM(E:E) -> 7.5

Sheet i2
A2: APPLETISSER | E2: 3.5
A3: APPLETISSER | E3: 3.5
A4: APPLETISSER | E4: 3.5
A5: APPLETISSER | E5: 3.5
A6: APPLETISSER | E6: 3.5
A7: APPLETISSER | E7: 3.5
A8: APPLETISSER | E8: 3.5
A9: APPLETISSER | E9: 3.5
A10: APPLETISSER | E10: 3.5
A11: /// | E11: //
A12: APPLETISSER | E12: 3.5 | G12: TOTAL | I12: =SUM(E:E) -> 164.9
A13: APPLETISSER | E13: 3.5
A14: pichet 1/4 rouge | D14: 0.25 | E14: 6
A15: TK | D15: 50CL | E15: 4.7
A16: TK | D16: 50CL | E16: 4.7
A17: TK | D17: 50CL | E17: 4.7
A18: TK | D18: 50CL | E18: 4.7
A19: TK | D19: 50CL | E19: 4.7
A20: TK | D20: 50CL | E20: 4.7
A21: TK | D21: 50CL | E21: 4.7
A22: TK | D22: 50CL | E22: 4.7
A23: NORDIC AGRUMES | D23: 20CL | E23: 2.7
A24: THE fruits rouge | E24: 2.3
A25: THE fruits rouge | E25: 2.3
A26: GREEN SKY | E26: 5.5
A27: GREEN SKY | E27: 5.5
A28: GREEN SKY | E28: 5.5
A29: GREEN SKY | E29: 5.5
A30: GREEN SKY | E30: 5.5
A31: GREEN SKY | E31: 5.5
A32: GREEN SKY | E32: 5.5
A33: GREEN SKY | E33: 5.5
A34: GREEN SKY | E34: 5.5
A35: ELO | E35: 6.5
A36: ELO | E36: 6.5
A37: ELO | E37: 6.5
A38: ELO | E38: 6.5

Sheet i3
A1: 2023-09-08
G12: TOTAL | I12: =SUM(E:E) -> 0

Sheet i4
A1: 2023-09-08
G12: TOTAL | I12: =SUM(E:E) -> 0

Sheet i5
A1: 2023-09-06
G12: TOTAL | I12: =SUM(E:E) -> 0

Sheet i6
A1: 2023-09-08
G12: TOTAL | I12: =SUM(E:E) -> 0

Sheet i7
A1: 2023-09-08
A2: CHAUDFONTAINE Still | D2: 1L | E2: 6.6
A3: CHAUDFONTAINE Still | D3: 1L | E3: 6.6
A4: CHAUDFONTAINE Still | D4: 1L | E4: 6.6
A5: CHAUDFONTAINE Still | D5: 1L | E5: 6.6
A6: CHAUDFONTAINE Still | D6: 1L | E6: 6.6
A7: CHAUDFONTAINE Still | D7: 1L | E7: 6.6
A8: CHAUDFONTAINE Still | D8: 1L | E8: 6.6
A9: SPRITZ 0% | E9: 5
A10: SPRITZ 0% | E10: 5
A11: SPRITZ 0% | E11: 5
A12: SPRITZ 0% | E12: 5 | G12: TOTAL | I12: =SUM(E:E) -> 81.2
A13: SPRITZ 0% | E13: 5
A14: SPRITZ 0% | E14: 5
A15: SPRITZ 0% | E15: 5

Sheet i8
A1: 2023-09-06
A2: THE camomille | E2: 2.3
A3: THE camomille | E3: 2.3
A4: THE camomille | E4: 2.3
A5: THE camomille | E5: 2.3
A6: THE camomille | E6: 2.3
A7: THE camomille | E7: 2.3
G12: TOTAL | I12: =SUM(E:E) -> 13.8

Sheet i9
A2: LATTE MACCHIATO + Sirop | E2: 4.5
A3: LATTE MACCHIATO + Sirop | E3: 4.5
A4: LATTE MACCHIATO + Sirop | E4: 4.5
A5: LATTE MACCHIATO + Sirop | E5: 4.5
A6: LATTE MACCHIATO + Sirop | E6: 4.5
A7: LATTE MACCHIATO + Sirop | E7: 4.5
A8: LATTE MACCHIATO + Sirop | E8: 4.5
A9: CORNET CARBOLO | E9: 6
A10: CORNET CARBOLO | E10: 6
A11: CORNET CARBOLO | E11: 6
A12: CORNET CARBOLO | E12: 6 | G12: TOTAL | I12: =SUM(E:E) -> 79.5
A13: CORNET CARBOLO | E13: 6
A14: CORNET CARBOLO | E14: 6
A15: CORNET CARBOLO | E15: 6
A16: CORNET CARBOLO | E16: 6

Sheet i10
A1: 2023-09-08
G12: TOTAL | I12: =SUM(E:E) -> 0

Sheet compte

Sheet vidange
H4: pour compter les produits, il faut le faire uniquement pour les soft et les bières.

Sheet Tarif
A1: APPLETISSER | E1: 3.5
A2: JUS DE FRAISE | E2: 2.7
A3: CECEMEL | E3: 3
A4: CHAUDFONTAINE SPARKING | D4: 25CL | E4: 2.3
A5: CHAUDFONTAINE STILL | D5: 25CL | E5: 2.3
A6: COCA COLA | D6: 20CL | E6: 2.3
A7: COCA ZERO | D7: 20CL | E7: 2.3
A8: FANTA | D8: 20CL | E8: 2.3
A9: FUZE TEA CHAMOMILE | E9: 2.7
A10: FUZE TEA CITRON | E10: 2.7
A11: FUZE TEA PEACH | E11: 2.7
A12: MINUTE MAID ANANAS | D12: 20CL | E12: 2.7
A13: MINUTE MAID MULTIVITAMINES | D13: 20CL | E13: 2.7
A14: MINUTE MAID ORANGE | D14: 20CL | E14: 2.7
A15: MINUTE MAID POMME CERISE | D15: 20CL | E15: 2.7
A16: MINUTE MAID TOMATE | D16: 20CL | E16: 2.7
A17: NORDIC AGRUMES | D17: 20CL | E17: 2.7
A18: NORDIC BITTER | D18: 20CL | E18: 2.7
A19: NORDIC GINGER | D19: 20CL | E19: 2.7
A20: NORDIC TONIC | D20: 20CL | E20: 2.7
A21: PERRIER | E21: 2.7
A22: RED BULL | E22: 3.7
A23: SPRITE | D23: 20CL | E23: 2.3
A24: ASSIETTE PATE BOLO | E24: 13.5
A25: CHIPS PAPRIKA | E25: 2
A26: CORNET BOLO | E26: 6
A27: CROQUE MONSIEUR | E27: 6
A28: PORTION MIXTE | E28: 6
A29: SAUCISSE SECHE | E29: 2.6
A30: JUPILER | D30: 25CL | E30: 2.3
A31: JUPILER | D31: 33CL | E31: 3
A32: JUPILER | D32: 50CL | E32: 4.4
A33: TK | D33: 25CL | E33: 3.7
A34: TK | D34: 50CL | E34: 4.7
A35: HOUPPE | D35: 25CL | E35: 3.7
A36: HOUPPE | D36: 50CL | E36: 4.7
A37: Tête de mort | D37: 25CL | E37: 3.7
A38: Tête de mort | D38: 33CL | E38: 4.7
A39: Blanche rosé | E39: 3.5
A40: CHAUDFONTAINE SPARKING | D40: 1L | E40: 6.6
A41: CHAUDFONTAINE Still | D41: 1L | E41: 6.6
A42: Bouteille vin Blanc | E42: 18
A43: VERRE DE VIN BLANC | D43: VERRE | E43: 3
A44: PICHET 1/4 VIN BLANC | D44: 0.25 | E44: 6
A45: PICHET 1/2 VIN BLANC | D45: 0.5 | E45: 12
A46: AMARETTO 0% | E46: 3.5
A47: BITTER 0% | E47: 3.5
A48: CURACAO BLUE 0% | E48: 3.5
A49: PASSOA 0% | E49: 3.5
A50: PISANG 0% | E50: 3.5
A51: CAFE | E51: 2.3
A52: CAFE VIENNOIS | E52: 2.9
A53: CECEMEL CHAUD | E53: 3.3
A54: CHOCOLAT VIENNOIS | E54: 3.9
A55: DECA | E55: 2.3
A56: FRENCH COFFEE | E56: 7
A57: IRISH COFFEE | E57: 7
A58: ITALIAN COFFEE | E58: 7
A59: LATTE FRAPPE | E59: 3.7
A60: LATTE FRAPPE + SIROP | E60: 4.5
A61: LATTE MACCHIATO | E61: 3.7
A62: LATTE MACCHIATO + Sirop | E62: 4.5
A63: OXO | E63: 2.3
A64: ROYCO | E64: 2.6
A65: THE NATURE | E65: 2.3
A66: VIN CHAUD | E66: 3.5
A67: CARLSBERG | E67: 3.4
A68: CHIMAY BLANCHE | E68: 4.7
A69: CHIMAY BLEUE | E69: 4.7
A70: CORNE BLACK | E70: 4.7
A71: CORNE TRIPLE | E71: 4.7
A72: DESPERADOS | E72: 4.5
A73: DOMINICAINE | E73: 4.7
A74: DUVEL | E74: 4.7
A75: GAULOISE BLONDE | E75: 4.2
A76: GAULOISE AMBRE | E76: 4.2
A77: GEUSE BOUCHONNEE | E77: 5.5
A78: HOEGAARDEN BLANCHE | E78: 3.5
A79: JAMBES EN L'AIR | E79: 4.7
A80: JUPILER | E80: 2.2
A81: KRIEK | E81: 3.6
A82: KWAK | E82: 4.7
A83: LEFFE BLONDE | E83: 4.5
A84: LEFFE BRUNE | E84: 4.5
A85: LIEFMANS | E85: 3.5
A86: MAREDSOUS 6° | E86: 4.2
A87: ORVAL JEUNE | E87: 4.7
A88: PECHE MEL' BUSH | E88: 4.7
A89: PECHERESSE | E89: 3.6
A90: PIETRA | E90: 5
A91: ROCHEFORT 8° | E91: 4.7
A92: RODENBACH | E92: 3.5
A93: RODENBACH FRUITAGE | E93: 3.3
A94: TETE DE MORT rouge | E94: 4.7
A95: VICTORIA | E95: 4.7
A96: WESTMALLE TRIPLE | E96: 4.7
A97: Caslberg 0% | E97: 3.4
A98: Liefmans 0% | E98: 3.5
A99: Jupiler 0% | E99: 3.1
A100: Bouteille vin rosé | E100: 18
A101: Bouteille vin rouge | E101: 18
A102: pichet 1/4 rosé | D102: 0.25 | E102: 6
A103: pichet 1/4 rouge | D103: 0.25 | E103: 6
A104: VERRE DE VIN ROSE | D104: VERRE | E104: 3
A105: VERRE DE VIN ROUGE | D105: VERRE | E105: 3
A106: PICHET 1/2 VIN ROSE | D106: 0.5 | E106: 12
A107: PICHET 1/2 VIN ROUGE | D107: 1.5 | E107: 12
A108: THE Menthe | E108: 2.3
A109: THE fruits rouge | E109: 2.3
A110: THE camomille | E110: 2.3
A111: /// | E111: //
A112: ASSIETTE PATE CARBO | E112: 13.5
A113: ASSIETTE PATE FLECHE | E113: 13.5
A114: CHIPS SEL | E114: 2
A115: CHIPS GRILLS | E115: 2
A116: CORNET CARBO | E116: 6
A117: CORNET FLECHE | E117: 6
A118: CORNET CARBOLO | E118: 6
A119: PORTION FROMAGE | E119: 6
A120: PORTION SAUCISSON | E120: 6
A121: PORTION FROMAGE + SAUCISSON | E121: 6
A122: BLUE HAWAIIAN | E122: 25
A123: DITCH SUCRE | E123: 25
A124: SEX ON THE BEACH | E124: 25
A125: BEN | E125: 25
A126: ELO | E126: 25
A127: 5EME AVENUE | E127: 25
A128: PINK PARADISE | E128: 25
A129: RO-PLANTEUR | E129: 25
A130: BRISEE | E130: 25
A131: VIRGIN SEX ON THE BEACH | E131: 5.5
A132: PEPINO | E132: 5.5
A133: VIRGIN MOJITO ICE TEA | E133: 6
A134: CENDRILLON | E134: 4.5
A135: VIRGIN CAIPIRINHA | E135: 5.5
A136: VERGER | E136: 4.1
A137: VIRGIN MOJITO | E137: 5
A138: L'INDIEN | E138: 5
A139: FUNNY SUNRISE | E139: 5.5
A140: AFTERGLOW | E140: 4
A141: RIO | E141: 3.5
A142: BELLA LUNA | E142: 4.5
A143: COLADA FIZZ | E143: 5.5
A144: GREEN SKY | E144: 5.5
A145: FLECHE 0% | E145: 5
A146: GREEN SWEET&SOUR | E146: 4.5
A147: SPRITZ 0% | E147: 5
A148: AMARETTO SUNRISE | E148: 6.5
A149: APO COCO | E149: 8
A150: ANTOINE | E150: 8.5
A151: BRUGAL | E151: 7.5
A152: BEATITUDE | E152: 8
A153: BEN | E153: 5.5
A154: BRISEE | E154: 8
A155: 5EME AVENUE | E155: 6
A156: CUBA LIBRE | E156: 5
A157: DITCH SEC | E157: 7.5
A158: DREAM FIZZ | E158: 7.5
A159: DAIQUIRI FRAMBOISE | E159: 8
A160: DITCH SUCRE | E160: 7.5
A161: DEEP VALLEY | E161: 7.5
A162: DISARONO SOUR | E162: 5.5
A163: ELO | E163: 6.5
A164: EXOTIQUE | E164: 7
A165: FIZZY PUNCH | E165: 8
A166: FUN ON THE BEACH | E166: 7
A167: GATINA | E167: 8
A168: GIN FIZZ | E168: 8
A169: GRAND BLEU | E169: 8
A170: ICE WALL | E170: 7
A171: JE SAIS PAS | E171: 8.5
A172: LABEL SUNRISE | E172: 6.5
A173: LONDON COLLINS | E173: 6
A174: LILLET | E174: 6
A175: MISTRAL | E175: 7.5
A176: MINT FIZZ | E176: 7.5
A177: MIKE | E177: 10
A178: MARGARITA | E178: 7.5
A179: MARACUJA | E179: 8
A180: MAI TAI | E180: 8.5
A181: MOJITO | E181: 8
A182: MOJITO WOODBERRIES | E182: 10
A183: MOJITO PASSION | E183: 10
A184: MOJITO FRAISE | E184: 10
A185: MIJOTI ICE TEA | E185: 9
A186: PINK PARADISE | E186: 8
A187: PINA COLADA | E187: 8.5
A188: PINA COLADA FRAISE | E188: 8.5
A189: RED LABEL | E189: 6
A190: REINETTE | E190: 8
A191: RO-PLANTEUR | E191: 8
A192: SEX ON THE BEACH | E192: 8.5
A193: SPRITZ | E193: 7
A194: SWEET APO | E194: 8
A195: SANTO LIBRE | E195: 8
A196: SO GOOD | E196: 6.5
A197: SANG DU PIRATE | E197: 8
A198: STRAWBERRY | E198: 7
A199: TEQUILA SUNRISE | E199: 8
A200: TORTUE | E200: 7
... 55 more rows

Sheet menu

Sheet cocktail

Sheet cocktail0

Sheet cocktailp

Sheet Bouteille

Sheet Fut

Sheet biere

Sheet Alcool

Sheet Vin

Sheet 0%

Sheet chaude

Sheet Snack

Sheet soft
